bitfinex/quotes_ETHUSD_20251218
["timestamp","ask_amount","ask_price","bid_price","bid_amount"]
[1766096487940,4.2034,2829.6,2829.4,0.002]
[1766096488558,4.2034,2829.6,2829.5,0.002]
[1766096491049,1.6306,2829.4,2828.7,0.002]
[1766096491248,2.5728,2829.1,2828.7,0.002]
[1766096491429,4.2034,2829.1,2828.7,0.002]
[1766096494762,7.06398929,2829.7,2828.7,1.7019]
[1766096494966,2.5728,2829.3,2828.7,1.7019]
[1766096495148,2.5728,2829.2,2828.7,1.7019]
[1766096498369,0.561,2829.7,2828.7,0.002]
[1766096498739,4.2034,2829.6,2828.8,2.0978]
[1766096498958,1.6306,2829.5,2828.8,2.0978]
[1766096499241,2.5728,2829.3,2828.8,2.0978]
[1766096499463,2.5728,2829.1,2828.8,0.002]
[1766096501345,4.2034,2829.1,2828.8,0.002]
[1766096503379,2.5728,2829.1,2828.8,0.002]
[1766096510761,0.001,2829.3,2828.8,0.002]
[1766096510978,2.5068,2829.3,2828.8,1.5804]
[1766096511278,4.2212,2829.3,2828.8,1.5804]
[1766096511586,2.5058,2829.2,2828.8,1.5804]
[1766096513466,4.2202,2829.2,2828.8,1.5804]
[1766096517783,0.001,2829.3,2828.8,0.002]
[1766096517980,0.001,2829.3,2828.9,1.5804]
[1766096518709,2.5068,2829.3,2828.9,1.5804]
[1766096519702,4.2212,2829.3,2828.9,1.5804]
[1766096520608,4.2212,2829.3,2828.9,0.002]
[1766096521693,4.214,2829.2,2828.9,0.002]
[1766096522405,2.5135,2829.1,2828.9,0.002]
[1766096522607,4.214,2828.9,2828.7,0.002]
[1766096523076,4.214,2828.9,2828.6,0.002]
[1766096523275,1.7005,2829.1,2828.6,0.002]
[1766096523506,2.5135,2828.8,2828.6,0.002]
[1766096523707,0.562,2829.3,2828.6,0.002]
[1766096523912,4.214,2829.2,2828.6,0.002]
[1766096524091,0.562,2829.3,2828.6,0.002]
[1766096524092,2.5135,2828.8,2828.6,0.002]
[1766096524280,4.214,2828.8,2828.6,0.002]
[1766096524483,2.9911,2829.1,2828.6,0.002]
[1766096524789,4.215,2829.3,2828.6,1.6574]
[1766096524986,4.776,2829.3,2828.8,1.6554]
[1766096525584,0.001,2829.3,2828.8,1.6554]
[1766096525881,2.5135,2829.6,2829.0,2.0162]
[1766096526107,4.214,2829.6,2829.0,2.0162]
[1766096526614,4.214,2829.7,2829.0,2.0162]
[1766096526789,0.51845453,2829.7,2829.0,2.0162]
[1766096526990,0.561,2829.8,2829.0,2.0162]
[1766096526991,2.5135,2829.5,2829.0,2.0162]
[1766096527184,4.214,2829.5,2829.0,2.0162]
[1766096530113,2.5135,2829.9,2829.0,1.6554]
[1766096530320,2.5135,2829.6,2828.6,0.002]
[1766096530506,2.5145,2829.6,2828.6,0.002]
[1766096531618,2.5145,2829.6,2828.5,0.002]
[1766096532117,2.5135,2829.3,2828.4,0.002]
[1766096532291,2.5135,2828.9,2828.4,0.002]
[1766096532492,2.5135,2828.7,2828.4,0.002]
[1766096532702,2.5809,2828.6,2828.4,0.002]
[1766096534019,1.7281,2828.5,2828.2,0.002]
[1766096534190,2.5809,2828.7,2828.2,0.002]
[1766096534390,2.5809,2828.5,2828.2,0.002]
[1766096535087,4.309,2828.7,2828.2,0.002]
[1766096535291,2.5809,2828.6,2828.2,0.002]
[1766096535517,4.309,2828.6,2828.2,0.002]
[1766096536222,4.309,2828.6,2828.0,0.002]
[1766096536223,1.7281,2828.4,2828.0,0.002]
[1766096536521,2.5809,2828.3,2828.0,0.002]
[1766096537531,4.309,2828.3,2828.0,0.002]
[1766096538220,1.7281,2828.3,2828.0,0.002]
[1766096538425,2.5809,2828.2,2828.0,0.002]
[1766096539225,2.5809,2828.2,2827.7,0.002]
[1766096539226,1.7281,2828.1,2827.7,0.002]
[1766096539389,2.5809,2828.5,2827.7,1.7525]
[1766096539594,3.1419,2828.4,2827.7,1.7525]
[1766096539906,2.5809,2828.3,2827.7,1.7525]
[1766096541001,1.7281,2828.3,2827.7,1.7525]
[1766096541329,4.309,2828.1,2827.7,0.002]
[1766096541508,2.5809,2828.0,2827.7,0.002]
[1766096542014,4.309,2828.0,2827.7,0.002]
[1766096542529,2.5769,2827.9,2827.7,0.002]
[1766096543527,1.7281,2827.9,2827.4,1.7505]
[1766096543699,1.7281,2827.9,2827.5,0.23115]
[1766096544633,2.5809,2827.8,2827.6,0.002]
[1766096545915,2.5809,2827.8,2827.3,2.3115]
[1766096546120,2.5809,2827.8,2827.4,1.7505]
[1766096546424,2.5809,2827.8,2827.2,0.002]
[1766096546735,2.5809,2827.8,2827.3,1.97218802]
[1766096548927,1.7281,2827.8,2827.3,1.97218802]
[1766096549101,2.5809,2827.7,2827.3,1.97218802]
[1766096549303,2.5809,2827.7,2827.3,0.22168802]
[1766096549610,2.5809,2827.7,2827.3,1.97218802]
[1766096549802,2.5809,2827.7,2827.3,1.7505]
[1766096550828,2.5809,2827.6,2827.2,0.563]
[1766096551031,2.5809,2827.6,2827.2,0.002]
[1766096551209,0.561,2828.0,2826.9,0.561]
[1766096551210,2.5809,2827.4,2826.9,0.561]
[1766096551409,2.5809,2827.3,2826.8,1.7505]
[1766096551726,2.5809,2827.7,2826.8,1.98185]
[1766096551963,2.5809,2827.5,2826.8,1.98185]
[1766096552098,2.5809,2827.5,2826.8,1.7505]
[1766096552710,2.5809,2827.4,2826.8,1.7505]
[1766096553108,2.5809,2827.4,2826.7,1.7505]
[1766096553109,4.309,2827.4,2826.7,1.7505]
[1766096553400,2.5809,2827.3,2826.7,1.7505]
[1766096553637,2.5809,2827.2,2826.7,1.7505]
[1766096555138,2.5809,2827.2,2826.6,0.563]
[1766096555310,2.5809,2827.0,2826.6,0.002]
[1766096555637,2.5809,2826.9,2826.6,0.002]
[1766096557467,4.309,2826.9,2826.6,0.002]
[1766096559348,2.5809,2826.9,2826.6,0.002]
[1766096559732,4.309,2826.9,2826.6,0.002]
[1766096559937,2.5809,2826.8,2826.6,0.002]
[1766096560849,1.7281,2826.9,2826.6,0.002]
[1766096561055,2.5809,2827.0,2826.6,1.7525]
[1766096562556,4.2562,2826.9,2826.6,0.002]
[1766096562757,2.6322,2826.8,2826.1,0.002]
[1766096562946,1.6753,2826.4,2826.1,0.002]
[1766096563270,4.3075,2826.3,2825.7,2.1877]
[1766096563469,0.561,2826.7,2825.4,1.6287]
[1766096563470,1.6753,2826.1,2825.4,1.6287]
[1766096564480,1.6753,2826.1,2825.4,1.84767]
[1766096564680,1.6753,2826.1,2825.4,1.6287]
[1766096564846,1.6753,2826.5,2825.6,1.6267]
[1766096565046,1.6753,2826.5,2825.5,1.6267]
[1766096565678,2.6322,2826.2,2825.6,0.002]
[1766096565881,2.6322,2826.2,2825.6,1.6287]
[1766096566867,4.3075,2826.2,2825.6,1.6287]
[1766096567838,2.6322,2826.1,2825.6,1.6287]
[1766096568870,0.46438023,2826.7,2826.0,1.6267]
[1766096569039,2.6322,2826.8,2826.0,1.6267]
[1766096569241,4.3075,2826.8,2826.0,1.6267]
[1766096569665,4.3075,2826.7,2826.0,1.6267]
[1766096570069,0.561,2827.1,2826.3,1.6267]
[1766096570070,2.6322,2827.1,2826.3,1.6267]
[1766096570273,3.11915,2827.1,2826.3,1.6267]
[1766096570441,0.48695,2827.1,2826.3,1.6267]
[1766096570642,2.6322,2827.1,2826.3,1.6267]
[1766096571291,2.2373,2827.2,2826.3,1.6267]
[1766096571292,0.562,2827.2,2826.3,1.6267]
[1766096571647,2.6322,2827.1,2826.3,1.6267]
[1766096572070,1.6753,2827.1,2826.3,1.6267]
[1766096572271,2.6322,2827.0,2826.3,1.6267]
[1766096572786,3.1942,2827.2,2826.4,1.6267]
[1766096573277,1.6753,2827.1,2826.4,1.6267]
[1766096573472,1.6753,2827.0,2826.4,1.6267]
[1766096573649,2.6322,2826.9,2826.4,1.6267]
[1766096574777,1.6753,2826.9,2826.4,1.6267]
[1766096575085,2.6322,2826.6,2826.3,0.002]
[1766096575246,1.6753,2826.4,2825.8,2.09108023]
[1766096575446,4.3075,2826.3,2825.8,1.6267]
[1766096575676,2.6322,2826.2,2825.8,1.6267]
[1766096577573,2.6322,2826.2,2825.7,2.1877]
[1766096578877,3.06295,2826.6,2825.8,1.6267]
[1766096579052,2.6322,2826.6,2825.8,1.6267]
[1766096579695,3.53719776,2827.1,2826.3,1.6267]
[1766096579696,1.02538023,2827.1,2826.3,1.6267]
[1766096579864,2.6332,2827.2,2826.3,1.6267]
[1766096580189,4.3085,2827.2,2826.4,1.6267]
[1766096580387,1.6763,2827.2,2826.5,6.5105823]
[1766096580576,2.6322,2827.4,2826.7,1.6267]
[1766096580764,2.6322,2827.3,2826.7,1.6267]
[1766096580963,4.3075,2827.3,2826.7,1.6267]
[1766096581165,2.6322,2827.2,2826.7,1.6267]
[1766096581473,2.6322,2827.3,2826.7,1.6267]
[1766096582002,2.7537,2827.2,2826.7,1.6267]
[1766096582296,0.001,2827.1,2826.7,1.6267]
[1766096586684,2.7547,2827.1,2826.7,1.6267]
[1766096588983,2.7547,2827.1,2826.6,6.51992134]
[1766096589281,2.7547,2827.1,2826.5,2.2114]
[1766096589510,2.7537,2826.9,2826.5,2.51952282]
[1766096589681,2.7537,2826.9,2826.5,2.2114]
[1766096590588,2.7537,2828.0,2826.8,6.51992134]
[1766096590754,2.7537,2828.0,2827.5,6.51992134]
[1766096590954,0.561,2828.2,2827.6,1.6504]
[1766096591171,2.7537,2828.1,2827.6,1.6504]
[1766096591486,4.97638023,2828.1,2827.6,1.6504]
[1766096591671,1.7583,2828.1,2827.3,6.51992134]
[1766096591859,2.7537,2827.9,2827.4,1.6504]
[1766096592054,2.7537,2827.7,2827.1,8.73132134]
[1766096592254,2.7537,2827.6,2826.9,1.6504]
[1766096592481,2.7537,2827.6,2827.0,1.6504]
[1766096592978,4.4852,2827.6,2827.0,1.6504]
[1766096593177,2.7639,2827.5,2827.0,1.6504]
[1766096593982,4.4852,2827.5,2827.0,1.6504]
[1766096594165,2.7639,2827.5,2827.0,1.6504]
[1766096594990,0.001,2830.0,2828.2,1.7258]
[1766096595192,2.7639,2829.9,2828.4,1.7258]
[1766096595389,2.7639,2829.3,2828.5,1.7284]
[1766096595596,4.93372,2829.2,2828.6,0.563]
[1766096595905,4.09758966,2830.0,2828.6,0.563]
[1766096595906,4.4852,2829.8,2828.9,1.7284]
[1766096596063,2.7639,2829.7,2828.9,1.7284]
[1766096596269,2.7639,2829.7,2829.1,6.51992134]
[1766096596566,2.7639,2829.7,2829.1,8.24992134]
[1766096597585,0.564,2830.0,2829.1,1.73]
[1766096597586,0.001,2830.0,2829.1,1.73]
[1766096597899,0.27649,2829.9,2829.1,1.73]
[1766096598502,0.001,2829.8,2829.2,0.563]
[1766096598870,2.7649,2829.8,2829.2,0.563]
[1766096599071,0.001,2829.8,2829.3,1.73]
[1766096600900,0.001,2829.8,2829.4,1.06236244]
[1766096601285,2.7639,2829.7,2829.0,1.73]
[1766096601604,3.21252,2829.6,2829.1,0.563]
[1766096602194,3.21252,2829.6,2829.2,1.06241511]
[1766096602381,3.21252,2829.6,2829.1,0.46438023]
[1766096602585,3.21252,2829.6,2829.1,1.5267991]
[1766096608591,4.93382,2829.6,2829.1,0.46438023]
[1766096609590,3.257282,2829.5,2828.4,1.73]
[1766096609789,3.257282,2829.5,2828.6,1.73]
[1766096609790,2.7639,2829.3,2828.6,1.73]
[1766096609989,2.7639,2829.3,2828.8,1.06250166]
[1766096610209,4.4852,2829.3,2828.8,1.06250166]
[1766096611218,4.4852,2829.2,2828.6,1.73]
[1766096611404,2.7639,2829.0,2828.2,1.73]
[1766096611711,1.7213,2829.0,2828.2,1.73]
[1766096611884,2.7639,2828.9,2828.4,1.06263338]
[1766096612279,2.7639,2828.9,2828.3,0.562]
[1766096612484,2.7639,2828.9,2828.3,2.08905501]
[1766096612791,2.7639,2828.9,2828.4,0.46438023]
[1766096613192,0.001,2829.8,2828.6,1.73]
[1766096613381,0.001,2829.8,2828.8,1.73]
[1766096613382,4.4852,2829.6,2828.8,1.73]
[1766096613585,2.7639,2829.5,2828.9,0.563]
[1766096613999,4.4852,2829.5,2828.9,1.02738023]
[1766096614185,4.93372,2829.5,2828.9,1.02738023]
[1766096615612,4.93372,2829.5,2828.9,0.46438023]
[1766096617396,3.3279,2829.8,2828.8,1.73]
[1766096617914,4.4852,2829.7,2828.8,1.73]
[1766096618249,2.7639,2829.6,2828.8,1.73]
[1766096619206,2.7639,2829.5,2828.8,1.73]
[1766096619541,3.21242,2829.5,2828.8,2.293]
[1766096619737,3.21242,2829.5,2828.9,0.002]
[1766096619902,3.21242,2829.5,2828.9,1.732]
[1766096621336,3.21242,2829.5,2828.9,0.002]
[1766096621512,2.7639,2829.4,2828.9,0.002]
[1766096623718,0.44852,2829.5,2829.0,1.7419]
[1766096624985,1.8091,2829.6,2828.9,0.002]
[1766096625202,1.8091,2829.5,2828.9,0.002]
[1766096625405,2.7518,2829.4,2828.9,0.002]
[1766096627485,1.8091,2829.5,2828.9,1.7439]
[1766096627686,4.5609,2829.5,2828.9,1.7439]
[1766096629500,0.001,2829.6,2828.9,1.7439]
[1766096630023,2.7518,2829.5,2828.9,1.7439]
[1766096638710,0.001,2829.6,2828.9,2.02092802]
[1766096639528,0.001,2829.6,2829.1,1.7419]
[1766096640623,0.001,2829.5,2829.1,1.7419]
[1766096643137,0.001,2829.6,2829.0,1.8261]
[1766096643310,0.001,2829.6,2829.1,1.8261]
[1766096643631,1.8232,2830.2,2829.2,0.46438023]
[1766096643839,2.5912,2830.3,2829.4,1.8261]
[1766096643840,3.1532,2830.3,2829.4,1.8261]
[1766096644442,0.562,2830.3,2829.4,1.8261]
[1766096644748,0.562,2830.3,2829.6,1.8261]
[1766096646734,2.5912,2830.4,2829.6,1.8261]
[1766096647114,2.5912,2830.4,2829.7,1.8261]
[1766096648449,0.001,2830.5,2829.6,0.46438023]
[1766096648633,0.001,2830.5,2829.6,1.8261]
[1766096648634,4.4154,2830.5,2829.6,1.8261]
[1766096648943,4.4144,2830.4,2829.7,2.13425282]
[1766096649517,2.5912,2830.4,2829.7,2.13425282]
[1766096649714,0.001,2830.5,2829.7,2.13425282]
[1766096651945,2.5922,2830.5,2829.7,2.13425282]
[1766096652250,6.50866315,2829.8,2828.9,0.002]
[1766096652410,1.8232,2829.3,2828.9,0.002]
[1766096652757,2.5912,2829.2,2828.9,0.002]
[1766096653066,1.7796,2829.1,2828.2,1.8369]
[1766096653224,2.6231,2829.0,2828.2,1.8369]
[1766096653413,2.6231,2829.0,2828.3,2.07679]
[1766096653614,4.4027,2829.0,2828.3,2.07679]
[1766096653814,2.6231,2828.9,2828.3,2.07679]
[1766096655237,4.4027,2828.9,2828.3,2.07679]
[1766096655437,2.6231,2828.8,2828.3,2.54117023]
[1766096655653,2.6231,2828.8,2828.3,0.002]
[1766096656109,2.6231,2828.6,2828.3,0.002]
[1766096656311,2.6231,2828.4,2828.3,0.002]
[1766096656631,1.7796,2828.5,2828.3,0.002]
[1766096656958,2.6231,2828.6,2828.3,0.002]
[1766096657319,4.4027,2828.6,2828.3,0.002]
[1766096657835,1.7796,2828.6,2828.3,0.002]
[1766096658141,2.6231,2828.5,2828.3,0.002]
[1766096659550,4.4027,2828.4,2827.9,0.002]
[1766096660328,2.6231,2828.4,2827.9,0.002]
[1766096661320,2.6231,2828.3,2827.9,0.002]
[1766096662430,4.4027,2828.3,2827.9,0.002]
[1766096663238,2.6231,2828.2,2827.9,0.002]
[1766096663649,2.6231,2828.1,2827.9,0.002]
[1766096663849,2.6231,2828.0,2827.9,0.002]
[1766096666652,0.562,2828.4,2827.7,0.002]
[1766096666948,2.6231,2828.2,2827.7,0.002]
[1766096667358,1.7796,2828.3,2827.7,1.8389]
[1766096667536,2.6231,2828.0,2827.7,0.002]
[1766096673549,4.4027,2827.9,2827.6,0.002]
[1766096673746,0.563,2828.4,2827.1,0.002]
[1766096673747,3.53656911,2828.4,2827.1,0.002]
[1766096673956,4.4027,2827.8,2827.1,1.8389]
[1766096674135,2.6231,2827.7,2827.1,1.8389]
[1766096674336,0.561,2828.1,2827.1,1.8389]
[1766096674570,4.4027,2828.0,2827.1,1.8389]
[1766096674750,0.561,2828.1,2827.1,1.8389]
[1766096674929,2.6231,2828.0,2827.1,2.07899]
[1766096675129,2.6231,2827.8,2827.1,2.07899]
[1766096675331,2.6231,2828.0,2827.1,2.07899]
[1766096675953,1.7796,2828.2,2827.1,2.07899]
[1766096675954,4.4027,2828.2,2827.1,2.07899]
[1766096676634,2.6231,2828.1,2827.1,2.07899]
[1766096676962,2.6231,2828.1,2827.4,1.8369]
[1766096677550,2.6231,2828.0,2827.4,1.8369]
[1766096677937,2.6231,2828.2,2827.4,1.8369]
[1766096678132,2.6231,2828.3,2827.4,1.8369]
[1766096678347,2.6231,2828.2,2827.4,1.8369]
[1766096678568,2.6231,2828.2,2827.6,1.8369]
[1766096679162,0.563,2828.4,2827.5,0.28632802]
[1766096679163,2.6231,2828.1,2827.5,0.28632802]
[1766096679458,4.4027,2828.1,2827.4,1.8369]
[1766096680379,1.7796,2828.1,2827.4,1.8369]
[1766096680659,0.563,2828.4,2827.2,0.90595723]
[1766096680660,1.7796,2827.9,2827.2,0.90595723]
[1766096680961,4.4027,2827.6,2827.1,0.002]
[1766096681458,2.6231,2827.5,2827.1,0.002]
[1766096682560,1.8084,2827.4,2827.1,0.002]
[1766096682759,2.5819,2827.3,2827.1,0.002]
[1766096682964,4.3903,2827.8,2827.1,0.002]
[1766096683160,3.53620191,2827.9,2827.1,0.002]
[1766096683460,2.5819,2827.5,2827.1,0.002]
[1766096683633,2.5819,2827.3,2827.1,0.002]
[1766096683832,4.3903,2827.3,2827.1,0.002]
[1766096685054,2.5819,2827.2,2827.1,0.002]
[1766096685270,4.0981072,2828.0,2827.1,1.7284]
[1766096685271,2.5819,2827.7,2827.1,1.7284]
[1766096685473,4.3903,2827.7,2827.1,1.7284]
[1766096685647,2.5819,2827.6,2827.1,1.7284]
[1766096688272,2.5819,2827.6,2827.1,0.002]
[1766096689778,0.562,2828.0,2827.1,0.002]
[1766096690076,4.9523,2828.0,2827.2,1.7264]
[1766096690248,2.3704,2828.0,2827.3,1.7264]
[1766096690459,2.5819,2827.9,2827.3,1.7264]
[1766096691746,4.3903,2827.9,2827.3,1.7264]
[1766096692547,2.5819,2827.8,2827.3,1.7264]
[1766096692960,2.5819,2827.8,2827.3,2.03790602]
[1766096696058,3.1439,2828.0,2827.3,2.03790602]
[1766096696262,4.9523,2828.0,2827.3,2.03790602]
[1766096696461,1.8084,2827.8,2827.3,0.31150602]
[1766096696780,0.562,2828.0,2827.1,0.564]
[1766096696781,4.9523,2828.0,2827.1,0.564]
[1766096696960,0.562,2828.0,2827.1,0.564]
[1766096697167,4.3903,2827.9,2827.2,1.7264]
[1766096697357,2.5819,2827.9,2827.2,1.7264]
[1766096697549,4.3903,2827.8,2827.2,1.7264]
[1766096699262,4.3903,2827.8,2827.2,1.95564]
[1766096700065,2.5819,2827.7,2827.2,1.95564]
[1766096700886,4.3903,2827.7,2827.2,1.95564]
[1766096701090,0.562,2828.0,2827.1,0.002]
[1766096701255,2.5819,2827.8,2827.0,0.002]
[1766096701458,6.51620205,2827.8,2826.8,0.002]
[1766096701677,2.8013,2827.7,2826.9,1.7688]
[1766096701880,2.8023,2828.2,2827.2,1.7688]
[1766096702110,4.6865,2828.2,2827.2,1.7688]
[1766096702283,1.8842,2828.0,2827.2,1.7688]
[1766096702490,4.6855,2828.0,2827.2,1.7688]
[1766096702791,0.001,2827.9,2827.2,1.7688]
[1766096703094,0.001,2827.9,2827.4,1.7688]
[1766096703312,2.8023,2827.9,2827.4,1.7688]
[1766096703521,2.8023,2827.9,2827.1,0.002]
[1766096703804,2.8013,2827.5,2827.1,0.002]
[1766096707079,1.8842,2827.3,2827.1,0.002]
[1766096707273,1.8842,2827.3,2826.8,0.002]
[1766096707274,4.6855,2827.3,2826.8,0.002]
[1766096707985,2.8013,2827.3,2826.8,1.7708]
[1766096708184,2.8013,2827.3,2826.9,0.46438023]
[1766096708701,0.001,2827.9,2827.3,1.7688]
[1766096708881,0.001,2828.2,2827.7,1.7688]
[1766096709086,0.001,2828.4,2827.9,1.7688]
[1766096709286,0.001,2828.4,2828.0,1.7688]
[1766096709622,4.6855,2828.6,2828.0,1.7688]
[1766096709796,2.8013,2828.5,2828.0,1.7688]
[1766096710597,2.8013,2828.5,2827.8,0.82871866]
[1766096710906,2.8013,2828.4,2827.8,1.29309889]
[1766096711095,2.8013,2828.4,2827.9,0.30618989]
[1766096713507,4.6096,2828.4,2827.9,0.30618989]
[1766096714710,2.8013,2828.4,2827.9,2.01988989]
[1766096717233,1.8083,2827.9,2827.3,0.002]
[1766096717518,2.641,2827.6,2827.3,0.002]
[1766096720823,2.641,2827.5,2827.3,0.002]
[1766096721118,2.641,2827.4,2827.0,0.002]
[1766096723613,0.561,2827.9,2827.1,1.7137]
[1766096723614,2.641,2827.8,2827.1,1.7137]
[1766096723783,2.641,2827.6,2827.1,1.7137]
[1766096725094,4.4493,2827.6,2827.0,0.002]
[1766096725917,2.641,2827.6,2827.0,1.7157]
[1766096727917,0.001,2827.6,2827.0,1.7157]
[1766096728814,0.561,2827.9,2827.2,1.7137]
[1766096729693,3.202,2827.9,2827.2,1.7137]
[1766096730016,0.001,2828.8,2827.4,1.7137]
[1766096730221,0.561,2828.7,2827.5,0.86988423]
[1766096730393,0.561,2828.7,2827.7,1.7137]
[1766096730728,0.001,2828.8,2827.8,0.74182482]
[1766096730891,0.001,2828.8,2827.9,1.3288]
[1766096731513,0.001,2828.8,2828.1,1.328]
[1766096731888,4.4503,2828.8,2828.1,1.328]
[1766096732093,2.641,2828.7,2828.1,1.328]
[1766096732294,2.641,2828.7,2828.1,1.5169]
[1766096734321,4.4493,2828.7,2828.1,1.5169]
[1766096735816,4.4503,2828.7,2828.1,1.5169]
[1766096737896,2.641,2828.2,2827.5,0.46438023]
[1766096738104,4.4493,2828.2,2827.6,0.561]
[1766096739420,0.561,2828.6,2827.6,0.561]
[1766096739421,2.63500001,2828.1,2827.6,0.561]
[1766096740024,2.63500001,2828.1,2827.6,1.8963]
[1766096740220,2.63500001,2828.1,2827.6,1.3353]
[1766096740405,2.63500001,2828.1,2827.6,1.8963]
[1766096740600,2.63500001,2828.1,2827.7,0.23606802]
[1766096740802,1.8083,2828.0,2827.2,1.3344]
[1766096741007,1.8083,2828.0,2827.1,0.561]
[1766096741209,1.8083,2828.0,2827.0,0.002]
[1766096741522,2.641,2828.1,2827.2,1.3337]
[1766096741709,2.641,2828.0,2827.2,1.79808023]
[1766096742026,1.8083,2828.0,2827.2,1.79808023]
[1766096742219,2.641,2827.9,2827.2,1.79808023]
[1766096743333,2.641,2827.9,2827.3,0.03536943]
[1766096743537,2.6984,2828.2,2827.5,1.3322]
[1766096743712,1.7216,2828.3,2827.5,1.3322]
[1766096743713,2.6984,2828.1,2827.5,1.3322]
[1766096743924,4.42,2828.1,2827.5,1.3322]
[1766096744531,1.7216,2828.1,2827.5,1.3322]
[1766096744732,2.6984,2828.0,2827.5,1.3322]
[1766096746607,2.6984,2828.0,2827.4,0.561]
[1766096746839,2.6984,2827.9,2827.4,0.561]
[1766096747167,2.6984,2827.7,2827.0,1.331]
[1766096747362,4.42,2827.5,2827.1,0.561]
[1766096747808,4.42,2827.5,2827.0,0.002]
[1766096748005,4.42,2827.5,2827.0,0.563]
[1766096748418,4.42,2827.4,2827.0,0.002]
[1766096752621,2.6984,2827.4,2827.0,0.002]
[1766096753621,1.7216,2827.7,2827.0,0.65563023]
[1766096753832,4.42,2827.5,2827.0,1.02738023]
[1766096755050,1.7216,2827.9,2827.2,6.51378941]
[1766096755251,0.001,2828.1,2827.1,1.8782]
[1766096755252,2.6984,2827.7,2827.1,1.8782]
[1766096755543,0.001,2828.1,2827.0,0.002]
[1766096755544,2.6984,2827.6,2827.0,0.46638023]
[1766096755749,4.42,2827.5,2827.1,0.561]
[1766096757247,2.6984,2827.4,2827.0,0.002]
[1766096759250,1.7216,2827.5,2827.0,0.88789696]
[1766096760249,1.7216,2827.5,2827.0,2.66247719]
[1766096761233,1.7216,2827.5,2827.0,1.77658023]
[1766096762338,2.6984,2827.6,2827.0,0.46638023]
[1766096762524,2.6984,2827.6,2827.0,1.80735341]
[1766096762847,4.5213,2827.6,2827.0,0.50175341]
[1766096763050,4.5213,2827.6,2827.0,0.46638023]
[1766096763250,4.5213,2827.6,2827.0,1.77198023]
[1766096763846,2.6984,2827.6,2827.1,1.3042]
[1766096764729,1.8229,2827.8,2827.1,1.3042]
[1766096764930,4.9859,2827.9,2827.1,1.3042]
[1766096765158,4.4249,2827.8,2827.1,1.3042]
[1766096765325,4.4249,2827.8,2827.2,0.26554572]
[1766096766955,2.602,2827.7,2827.2,0.26554572]
[1766096768332,2.602,2827.7,2827.2,1.56314572]
[1766096768657,2.602,2827.7,2827.2,0.26554572]
[1766096768858,4.4249,2827.7,2827.0,1.76398023]
[1766096769059,4.4249,2827.7,2827.0,0.46638023]
[1766096769266,4.4249,2827.7,2827.1,1.2976]
[1766096770150,2.602,2827.6,2827.1,1.2976]
[1766096770657,4.4249,2827.6,2827.1,1.8586]
[1766096771239,4.4249,2827.6,2827.1,2.09109802]
[1766096773162,4.4249,2827.6,2827.1,1.53009802]
[1766096773362,4.4249,2827.6,2827.1,2.09109802]
[1766096773861,1.8229,2827.6,2827.1,0.23249802]
[1766096774162,2.665,2827.3,2827.1,0.561]
[1766096774360,1.7379,2827.4,2827.1,0.561]
[1766096776034,2.665,2827.5,2827.1,0.561]
[1766096777668,4.4029,2827.4,2827.1,0.561]
[1766096777842,2.665,2827.4,2827.1,0.561]
[1766096778369,2.665,2827.4,2826.8,0.002]
[1766096778370,4.4029,2827.1,2826.8,0.002]
[1766096779336,2.665,2827.6,2826.8,0.59837568]
[1766096779541,1.7379,2827.6,2826.9,1.2944]
[1766096779854,4.4029,2827.5,2826.9,1.2944]
[1766096780773,2.665,2827.4,2826.9,1.2944]
[1766096781390,2.665,2827.2,2826.8,0.002]
[1766096781588,1.7379,2827.1,2826.8,0.002]
[1766096781776,2.665,2827.0,2826.8,0.002]
[1766096782277,1.7379,2827.1,2826.8,0.002]
[1766096782673,2.665,2827.2,2826.8,0.002]
[1766096783789,2.665,2827.2,2826.9,0.002]
[1766096783992,4.4029,2827.1,2826.6,0.002]
[1766096784290,4.4029,2827.1,2826.6,0.563]
[1766096785274,2.665,2827.0,2826.6,0.563]
[1766096786594,0.561,2827.8,2826.7,1.2969]
[1766096786772,2.665,2827.2,2826.6,0.563]
[1766096786968,4.4029,2827.2,2826.6,1.8599]
[1766096787188,4.4029,2827.2,2826.6,2.04609]
[1766096787774,0.561,2827.8,2826.6,2.04609]
[1766096787978,0.561,2827.8,2826.6,1.8599]
[1766096788169,0.561,2827.8,2826.6,0.563]
[1766096788370,0.561,2827.8,2826.7,1.2966]
[1766096788593,4.4029,2827.7,2826.7,1.2966]
[1766096788969,0.561,2827.8,2826.7,1.2966]
[1766096789170,0.46438023,2828.0,2826.7,1.48276]
[1766096789360,1.7379,2827.8,2826.7,1.48276]
[1766096789566,1.7379,2827.4,2826.7,1.48276]
[1766096789892,4.4029,2827.4,2826.8,1.857]
[1766096791096,4.4029,2827.4,2826.9,0.561]
[1766096793195,0.001,2827.7,2826.9,0.561]